[Event "Titled Tuesday Blitz March 08 Early 2022"]
[White "Gaehwiler, Gabriel"]
[Black "Ljukin, Sergei"]
[WhiteFideId "1314530"]
[BlackFideId "14102200"]
[WhiteElo "2383"]
[BlackElo "2312"]
[Result "1-0"]
[Round "03"]
[TimeControl "180+1"]
[Date "2022.03.09"]
[WhiteClock "0:00:45"]
[BlackClock "0:00:06"]

1. Nf3 {[%clk 0:03:00]}  d5 {[%clk 0:02:59]} 2. d4 {[%clk 0:03:01]}  Nf6 {[%clk 0:02:58]} 3. c4 {[%clk 0:03:02]}  c6 {[%clk 0:02:58]} 4. Nc3 {[%clk 0:03:01]}  dxc4 {[%clk 0:02:58]} 5. a4 {[%clk 0:03:00]}  Bf5 {[%clk 0:02:58]} 6. Ne5 {[%clk 0:03:01]}  Na6 {[%clk 0:02:58]} 7. f3 {[%clk 0:02:51]}  Nd7 {[%clk 0:02:57]} 8. Nxc4 {[%clk 0:02:50]}  e5 {[%clk 0:02:53]} 9. e4 {[%clk 0:02:50]}  exd4 {[%clk 0:02:53]} 10. Qxd4 {[%clk 0:02:49]}  Nb4 {[%clk 0:02:52]} 11. Nd6+ {[%clk 0:02:31]}  Bxd6 {[%clk 0:02:40]} 12. Qxd6 {[%clk 0:02:32]}  Nc2+ {[%clk 0:02:35]} 13. Kf2 {[%clk 0:02:32]}  Qb6+ {[%clk 0:02:14]} 14. Kg3 {[%clk 0:02:30]}  Nxa1 {[%clk 0:02:11]} 15. exf5 {[%clk 0:02:25]}  Qc5 {[%clk 0:02:09]} 16. Bf4 {[%clk 0:02:06]}  Qxd6 {[%clk 0:02:00]} 17. Bxd6 {[%clk 0:02:07]}  Nb6 {[%clk 0:01:12]} 18. Bd3 {[%clk 0:01:52]}  Nb3 {[%clk 0:01:10]} 19. f6 {[%clk 0:01:50]}  gxf6 {[%clk 0:01:05]} 20. Bf5 {[%clk 0:01:48]}  Nd4 {[%clk 0:00:59]} 21. Re1+ {[%clk 0:01:44]}  Ne6 {[%clk 0:00:59]} 22. Ne4 {[%clk 0:01:40]}  O-O-O {[%clk 0:00:50]} 23. Be7 {[%clk 0:01:33]}  Rd7 {[%clk 0:00:49]} 24. Bxf6 {[%clk 0:01:30]}  Rg8+ {[%clk 0:00:49]} 25. Kf2 {[%clk 0:01:27]}  Nd5 {[%clk 0:00:49]} 26. Be5 {[%clk 0:01:24]}  Nb4 {[%clk 0:00:43]} 27. Nd6+ {[%clk 0:01:23]}  Kd8 {[%clk 0:00:42]} 28. Kf1 {[%clk 0:01:08]}  Nd5 {[%clk 0:00:35]} 29. Nxf7+ {[%clk 0:01:07]}  Rxf7 {[%clk 0:00:28]} 30. Bxe6 {[%clk 0:01:07]}  Rff8 {[%clk 0:00:29]} 31. Bxg8 {[%clk 0:01:06]}  Rxg8 {[%clk 0:00:29]} 32. g4 {[%clk 0:01:07]}  Kd7 {[%clk 0:00:29]} 33. Kf2 {[%clk 0:01:03]}  a5 {[%clk 0:00:29]} 34. h4 {[%clk 0:00:59]}  b5 {[%clk 0:00:23]} 35. g5 {[%clk 0:00:59]}  bxa4 {[%clk 0:00:19]} 36. Ra1 {[%clk 0:00:59]}  Rb8 {[%clk 0:00:17]} 37. Rxa4 {[%clk 0:00:58]}  Rb5 {[%clk 0:00:17]} 38. f4 {[%clk 0:00:58]}  Ke6 {[%clk 0:00:15]} 39. Kf3 {[%clk 0:00:56]}  Kf5 {[%clk 0:00:15]} 40. h5 {[%clk 0:00:55]}  Rb3+ {[%clk 0:00:15]} 41. Ke2 {[%clk 0:00:55]}  Rb5 {[%clk 0:00:13]} 42. g6 {[%clk 0:00:52]}  hxg6 {[%clk 0:00:13]} 43. h6 {[%clk 0:00:53]}  Rb7 {[%clk 0:00:11]} 44. Bg7 {[%clk 0:00:52]}  Nf6 {[%clk 0:00:05]} 45. Rxa5+ {[%clk 0:00:51]}  Ke6 {[%clk 0:00:05]} 46. Ra6 {[%clk 0:00:46]}  Rxb2+ {[%clk 0:00:05]} 47. Kd3 {[%clk 0:00:47]}  Nh7 {[%clk 0:00:05]} 48. Rxc6+ {[%clk 0:00:46]}  Kf5 {[%clk 0:00:06]} 49. Bxb2 {[%clk 0:00:45]} 1-0


[Site "https://www.chess.com"]

[Event "Titled Tuesday Blitz March 08 Early 2022"]
[White "Gombocz, Ferenc Jr."]
[Black "Bethke, Richard"]
[WhiteFideId "775029"]
[BlackFideId "12959243"]
[WhiteElo "1913"]
[BlackElo "2515"]
[Result "0-1"]
[Round "03"]
[TimeControl "180+1"]
[Date "2022.03.09"]
[WhiteClock "0:00:02"]
[BlackClock "0:00:04"]

1. c4 {[%clk 0:03:00]}  Nf6 {[%clk 0:02:59]} 2. g3 {[%clk 0:03:01]}  e6 {[%clk 0:02:59]} 3. Bg2 {[%clk 0:03:01]}  d5 {[%clk 0:03:00]} 4. Nf3 {[%clk 0:03:01]}  dxc4 {[%clk 0:03:01]} 5. Qa4+ {[%clk 0:02:59]}  Bd7 {[%clk 0:02:59]} 6. Qxc4 {[%clk 0:02:59]}  c5 {[%clk 0:03:00]} 7. Qc2 {[%clk 0:02:56]}  Bc6 {[%clk 0:02:58]} 8. O-O {[%clk 0:02:56]}  Be7 {[%clk 0:02:58]} 9. b3 {[%clk 0:02:53]}  O-O {[%clk 0:02:58]} 10. Bb2 {[%clk 0:02:53]}  Nbd7 {[%clk 0:02:58]} 11. Nc3 {[%clk 0:02:53]}  Rc8 {[%clk 0:02:57]} 12. Rfd1 {[%clk 0:02:51]}  Qc7 {[%clk 0:02:31]} 13. Rac1 {[%clk 0:02:50]}  Rfd8 {[%clk 0:02:17]} 14. e4 {[%clk 0:02:45]}  Bf8 {[%clk 0:02:04]} 15. d4 {[%clk 0:02:42]}  cxd4 {[%clk 0:02:04]} 16. Nxd4 {[%clk 0:02:41]}  Qb8 {[%clk 0:02:03]} 17. Nxc6 {[%clk 0:02:40]}  Rxc6 {[%clk 0:02:04]} 18. e5 {[%clk 0:02:34]}  Nxe5 {[%clk 0:01:45]} 19. Rxd8 {[%clk 0:02:32]}  Qxd8 {[%clk 0:01:44]} 20. Bxc6 {[%clk 0:02:32]}  bxc6 {[%clk 0:01:45]} 21. Rd1 {[%clk 0:02:26]}  Qa5 {[%clk 0:01:40]} 22. Ne2 {[%clk 0:02:18]}  h5 {[%clk 0:01:12]} 23. Bc3 {[%clk 0:02:09]}  Qc5 {[%clk 0:01:04]} 24. b4 {[%clk 0:02:01]}  Qc4 {[%clk 0:01:03]} 25. a3 {[%clk 0:01:25]}  h4 {[%clk 0:00:53]} 26. Kg2 {[%clk 0:01:19]}  Ng6 {[%clk 0:00:19]} 27. Rd4 {[%clk 0:01:08]}  Qb5 {[%clk 0:00:19]} 28. Rd8 {[%clk 0:01:03]}  Qh5 {[%clk 0:00:18]} 29. Bxf6 {[%clk 0:00:57]}  gxf6 {[%clk 0:00:17]} 30. Qe4 {[%clk 0:00:51]}  h3+ {[%clk 0:00:17]} 31. Kf1 {[%clk 0:00:48]}  Qg5 {[%clk 0:00:13]} 32. Nf4 {[%clk 0:00:42]}  Qb5+ {[%clk 0:00:11]} 33. Ke1 {[%clk 0:00:39]}  f5 {[%clk 0:00:08]} 34. Qd4 {[%clk 0:00:34]}  e5 {[%clk 0:00:06]} 35. Qd3 {[%clk 0:00:23]}  exf4 {[%clk 0:00:07]} 36. Qxb5 {[%clk 0:00:23]}  cxb5 {[%clk 0:00:07]} 37. Ra8 {[%clk 0:00:22]}  fxg3 {[%clk 0:00:08]} 38. fxg3 {[%clk 0:00:22]}  f4 {[%clk 0:00:07]} 39. gxf4 {[%clk 0:00:20]}  Nxf4 {[%clk 0:00:08]} 40. Rxa7 {[%clk 0:00:20]}  Ne6 {[%clk 0:00:08]} 41. Rb7 {[%clk 0:00:18]}  Nd4 {[%clk 0:00:08]} 42. Kf2 {[%clk 0:00:18]}  Bd6 {[%clk 0:00:07]} 43. Rd7 {[%clk 0:00:17]}  Be5 {[%clk 0:00:07]} 44. Rd5 {[%clk 0:00:17]}  f6 {[%clk 0:00:08]} 45. Ke3 {[%clk 0:00:14]}  Nc2+ {[%clk 0:00:04]} 46. Kf3 {[%clk 0:00:12]}  Nxa3 {[%clk 0:00:05]} 47. Kg4 {[%clk 0:00:12]}  Bxh2 {[%clk 0:00:04]} 48. Kxh3 {[%clk 0:00:12]}  Be5 {[%clk 0:00:05]} 49. Rd8+ {[%clk 0:00:11]}  Kf7 {[%clk 0:00:06]} 50. Ra8 {[%clk 0:00:10]}  Nc4 {[%clk 0:00:04]} 51. Kg4 {[%clk 0:00:10]}  Ke6 {[%clk 0:00:03]} 52. Kf3 {[%clk 0:00:09]}  Kd5 {[%clk 0:00:03]} 53. Rd8+ {[%clk 0:00:08]}  Nd6 {[%clk 0:00:03]} 54. Ke3 {[%clk 0:00:07]}  Kc4 {[%clk 0:00:03]} 55. Rb8 {[%clk 0:00:05]}  Kxb4 {[%clk 0:00:03]} 56. Rf8 {[%clk 0:00:03]}  Kc5 {[%clk 0:00:03]} 57. Kd3 {[%clk 0:00:02]}  b4 {[%clk 0:00:04]} 58. Kc2 {[%clk 0:00:02]}  Kd4 {[%clk 0:00:04]} 59. Kb3 {[%clk 0:00:02]}  Kc5 {[%clk 0:00:04]} 0-1


[Site "https://www.chess.com"]

[Event "Titled Tuesday Blitz March 08 Early 2022"]
[White "Gubanov, Oleg"]
[Black "Ardila, Oscar Humberto"]
[WhiteFideId "14115115"]
[BlackFideId "4404742"]
[WhiteElo "2080"]
[BlackElo "1966"]
[Result "1-0"]
[Round "03"]
[TimeControl "180+1"]
[Date "2022.03.09"]
[WhiteClock "0:00:18"]
[BlackClock "0:00:07"]

1. e4 {[%clk 0:03:00]}  e5 {[%clk 0:02:59]} 2. Nf3 {[%clk 0:03:00]}  Nc6 {[%clk 0:03:00]} 3. Bb5 {[%clk 0:03:00]}  a6 {[%clk 0:02:59]} 4. Ba4 {[%clk 0:03:00]}  Nf6 {[%clk 0:02:58]} 5. d3 {[%clk 0:02:59]}  b5 {[%clk 0:02:57]} 6. Bb3 {[%clk 0:02:59]}  Be7 {[%clk 0:02:57]} 7. O-O {[%clk 0:02:59]}  O-O {[%clk 0:02:57]} 8. a4 {[%clk 0:02:57]}  b4 {[%clk 0:02:55]} 9. c3 {[%clk 0:02:53]}  Rb8 {[%clk 0:02:44]} 10. Re1 {[%clk 0:02:50]}  d6 {[%clk 0:02:44]} 11. d4 {[%clk 0:02:46]}  Bg4 {[%clk 0:02:42]} 12. d5 {[%clk 0:02:34]}  Na5 {[%clk 0:02:37]} 13. Bc2 {[%clk 0:02:33]}  b3 {[%clk 0:02:24]} 14. Bd3 {[%clk 0:02:33]}  Qc8 {[%clk 0:02:14]} 15. Qe2 {[%clk 0:02:22]}  Ra8 {[%clk 0:02:12]} 16. Nbd2 {[%clk 0:02:18]}  c6 {[%clk 0:02:11]} 17. dxc6 {[%clk 0:02:16]}  Qxc6 {[%clk 0:02:11]} 18. h3 {[%clk 0:02:07]}  Bh5 {[%clk 0:02:10]} 19. Nc4 {[%clk 0:02:07]}  Nxc4 {[%clk 0:02:08]} 20. Bxc4 {[%clk 0:02:07]}  Rfb8 {[%clk 0:01:58]} 21. Bg5 {[%clk 0:02:07]}  Ra7 {[%clk 0:01:56]} 22. a5 {[%clk 0:01:58]}  h6 {[%clk 0:01:50]} 23. Bxf6 {[%clk 0:01:57]}  Bxf6 {[%clk 0:01:50]} 24. Bd5 {[%clk 0:01:57]}  Qc5 {[%clk 0:01:46]} 25. g4 {[%clk 0:01:51]}  Bg6 {[%clk 0:01:45]} 26. Nd2 {[%clk 0:01:50]}  Rb5 {[%clk 0:01:25]} 27. Nxb3 {[%clk 0:01:39]}  Qc7 {[%clk 0:01:25]} 28. Bc4 {[%clk 0:01:17]}  Rb8 {[%clk 0:01:20]} 29. Nc1 {[%clk 0:01:16]}  Qc6 {[%clk 0:01:10]} 30. Bd5 {[%clk 0:01:15]}  Qc7 {[%clk 0:01:05]} 31. Nd3 {[%clk 0:01:14]}  Rb5 {[%clk 0:01:04]} 32. Nb4 {[%clk 0:01:07]}  Qc8 {[%clk 0:00:17]} 33. Bc4 {[%clk 0:00:52]}  Rxb4 {[%clk 0:00:15]} 34. cxb4 {[%clk 0:00:51]}  Rc7 {[%clk 0:00:15]} 35. Bxa6 {[%clk 0:00:49]}  Qb8 {[%clk 0:00:16]} 36. b5 {[%clk 0:00:47]}  Bh4 {[%clk 0:00:14]} 37. b6 {[%clk 0:00:47]}  Rc5 {[%clk 0:00:14]} 38. Bc4 {[%clk 0:00:39]}  Qc8 {[%clk 0:00:13]} 39. b3 {[%clk 0:00:36]}  Kh7 {[%clk 0:00:12]} 40. a6 {[%clk 0:00:36]}  Qc6 {[%clk 0:00:11]} 41. a7 {[%clk 0:00:33]}  Qxb6 {[%clk 0:00:12]} 42. a8=Q {[%clk 0:00:32]}  Rxc4 {[%clk 0:00:12]} 43. bxc4 {[%clk 0:00:31]}  Qb3 {[%clk 0:00:11]} 44. Ra3 {[%clk 0:00:26]}  Qb4 {[%clk 0:00:10]} 45. Qa4 {[%clk 0:00:23]}  Qb8 {[%clk 0:00:10]} 46. Rb3 {[%clk 0:00:20]}  Qc8 {[%clk 0:00:10]} 47. Qb5 {[%clk 0:00:19]}  h5 {[%clk 0:00:09]} 48. gxh5 {[%clk 0:00:19]}  Qxh3 {[%clk 0:00:07]} 49. Rxh3 {[%clk 0:00:18]} 1-0


[Site "https://www.chess.com"]

[Event "Titled Tuesday Blitz March 08 Early 2022"]
[White "Gulecyuz, Deniz"]
[Black "Yandarbiev, Ruslan"]
[WhiteFideId "30921341"]
[BlackFideId "4115023"]
[WhiteElo "1923"]
[BlackElo "2102"]
[Result "0-1"]
[Round "03"]
[TimeControl "180+1"]
[Date "2022.03.09"]
[WhiteClock "0:00:47"]
[BlackClock "0:02:15"]

1. Nf3 {[%clk 0:03:00]}  Nf6 {[%clk 0:02:55]} 2. g3 {[%clk 0:02:59]}  g6 {[%clk 0:02:55]} 3. Bg2 {[%clk 0:03:00]}  Bg7 {[%clk 0:02:56]} 4. c4 {[%clk 0:03:00]}  O-O {[%clk 0:02:57]} 5. O-O {[%clk 0:03:00]}  d6 {[%clk 0:02:58]} 6. Nc3 {[%clk 0:03:00]}  Nbd7 {[%clk 0:02:59]} 7. d4 {[%clk 0:03:00]}  e5 {[%clk 0:03:00]} 8. e3 {[%clk 0:02:50]}  c6 {[%clk 0:02:59]} 9. b4 {[%clk 0:02:49]}  a5 {[%clk 0:02:58]} 10. b5 {[%clk 0:02:48]}  Re8 {[%clk 0:02:50]} 11. a4 {[%clk 0:02:34]}  e4 {[%clk 0:02:50]} 12. Nd2 {[%clk 0:02:32]}  d5 {[%clk 0:02:50]} 13. Ba3 {[%clk 0:02:20]}  Nf8 {[%clk 0:02:47]} 14. Rb1 {[%clk 0:02:01]}  Bg4 {[%clk 0:02:44]} 15. Qc2 {[%clk 0:02:01]}  Qd7 {[%clk 0:02:37]} 16. Nb3 {[%clk 0:01:06]}  Ne6 {[%clk 0:02:27]} 17. h3 {[%clk 0:01:04]}  Bf3 {[%clk 0:02:26]} 18. Nd2 {[%clk 0:00:57]}  Ng5 {[%clk 0:02:24]} 19. g4 {[%clk 0:00:47]}  Nxg4 {[%clk 0:02:16]} 20. hxg4 {[%clk 0:00:47]}  Qxg4 {[%clk 0:02:15]} 0-1


[Site "https://www.chess.com"]

[Event "Titled Tuesday Blitz March 08 Early 2022"]
[White "Hambleton, Aman"]
[Black "Kollars, Dmitrij"]
[WhiteFideId "2606577"]
[BlackFideId "12909572"]
[WhiteElo "2552"]
[BlackElo "2584"]
[Result "0-1"]
[Round "03"]
[TimeControl "180+1"]
[Date "2022.03.08"]
[WhiteClock "0:00:02"]
[BlackClock "0:01:41"]

1. d4 {[%clk 0:02:01]}  d5 {[%clk 0:02:58]} 2. Bf4 {[%clk 0:01:49]}  Nf6 {[%clk 0:02:58]} 3. e3 {[%clk 0:01:49]}  c5 {[%clk 0:02:57]} 4. c3 {[%clk 0:01:47]}  Nc6 {[%clk 0:02:55]} 5. Nd2 {[%clk 0:01:45]}  Bf5 {[%clk 0:02:55]} 6. Qb3 {[%clk 0:01:44]}  Qd7 {[%clk 0:02:53]} 7. Ngf3 {[%clk 0:01:41]}  c4 {[%clk 0:02:53]} 8. Qd1 {[%clk 0:01:41]}  e6 {[%clk 0:02:53]} 9. Nh4 {[%clk 0:01:38]}  Be4 {[%clk 0:02:50]} 10. f3 {[%clk 0:01:30]}  Bg6 {[%clk 0:02:48]} 11. e4 {[%clk 0:01:27]}  Be7 {[%clk 0:02:32]} 12. Nxg6 {[%clk 0:00:49]}  hxg6 {[%clk 0:02:33]} 13. Be3 {[%clk 0:00:45]}  e5 {[%clk 0:02:09]} 14. dxe5 {[%clk 0:00:17]}  Nxe5 {[%clk 0:02:10]} 15. exd5 {[%clk 0:00:11]}  Nxd5 {[%clk 0:02:11]} 16. Bf2 {[%clk 0:00:04]}  Qe6 {[%clk 0:02:06]} 17. Be2 {[%clk 0:00:01]}  Nd3+ {[%clk 0:02:04]} 18. Kf1 {[%clk 0:00:02]}  Nxf2 {[%clk 0:02:05]} 19. Kxf2 {[%clk 0:00:02]}  Bc5+ {[%clk 0:01:48]} 20. Ke1 {[%clk 0:00:02]}  Nf4 {[%clk 0:01:48]} 21. Ne4 {[%clk 0:00:02]}  Nxg2+ {[%clk 0:01:43]} 22. Kd2 {[%clk 0:00:02]}  O-O-O+ {[%clk 0:01:41]} 0-1


[Site "https://www.chess.com"]

[Event "Titled Tuesday Blitz March 08 Early 2022"]
[White "Hartikainen, Jarmo"]
[Black "Omelja, Artem"]
[WhiteFideId "503134"]
[BlackFideId "14119846"]
[WhiteElo "2118"]
[BlackElo "2382"]
[Result "0-1"]
[Round "03"]
[TimeControl "180+1"]
[Date "2022.03.09"]
[WhiteClock "0:00:09"]
[BlackClock "0:00:12"]

1. e4 {[%clk 0:02:41]}  c5 {[%clk 0:02:59]} 2. Nf3 {[%clk 0:02:40]}  e6 {[%clk 0:02:59]} 3. d4 {[%clk 0:02:40]}  cxd4 {[%clk 0:02:59]} 4. Nxd4 {[%clk 0:02:41]}  a6 {[%clk 0:02:59]} 5. Nc3 {[%clk 0:02:41]}  b5 {[%clk 0:03:00]} 6. g3 {[%clk 0:02:38]}  Bb7 {[%clk 0:02:58]} 7. Bg2 {[%clk 0:02:38]}  Nf6 {[%clk 0:02:53]} 8. a3 {[%clk 0:02:29]}  Qc7 {[%clk 0:02:49]} 9. O-O {[%clk 0:02:28]}  Bc5 {[%clk 0:02:39]} 10. Be3 {[%clk 0:02:19]}  O-O {[%clk 0:02:31]} 11. Re1 {[%clk 0:02:00]}  d6 {[%clk 0:02:20]} 12. Qd2 {[%clk 0:01:55]}  Nbd7 {[%clk 0:02:15]} 13. h3 {[%clk 0:01:50]}  Rac8 {[%clk 0:02:05]} 14. f4 {[%clk 0:01:49]}  Nb6 {[%clk 0:02:03]} 15. b3 {[%clk 0:01:19]}  e5 {[%clk 0:01:08]} 16. Nde2 {[%clk 0:01:06]}  Bxe3+ {[%clk 0:01:01]} 17. Qxe3 {[%clk 0:01:06]}  Rfe8 {[%clk 0:00:47]} 18. f5 {[%clk 0:00:56]}  d5 {[%clk 0:00:43]} 19. exd5 {[%clk 0:00:50]}  Nbxd5 {[%clk 0:00:42]} 20. Nxd5 {[%clk 0:00:44]}  Nxd5 {[%clk 0:00:43]} 21. Bxd5 {[%clk 0:00:27]}  Bxd5 {[%clk 0:00:42]} 22. Rac1 {[%clk 0:00:24]}  Bb7 {[%clk 0:00:34]} 23. Kh2 {[%clk 0:00:17]}  Qc6 {[%clk 0:00:21]} 24. Rg1 {[%clk 0:00:16]}  Qd7 {[%clk 0:00:17]} 25. c4 {[%clk 0:00:16]}  bxc4 {[%clk 0:00:16]} 26. f6 {[%clk 0:00:14]}  gxf6 {[%clk 0:00:13]} 27. Rxc4 {[%clk 0:00:14]}  Rxc4 {[%clk 0:00:12]} 28. bxc4 {[%clk 0:00:15]}  Rc8 {[%clk 0:00:10]} 29. Qc3 {[%clk 0:00:13]}  Qc6 {[%clk 0:00:09]} 30. Nc1 {[%clk 0:00:11]}  Qxc4 {[%clk 0:00:08]} 31. Qxc4 {[%clk 0:00:11]}  Rxc4 {[%clk 0:00:09]} 32. Ne2 {[%clk 0:00:10]}  Rc2 {[%clk 0:00:09]} 33. Re1 {[%clk 0:00:10]}  Bf3 {[%clk 0:00:09]} 34. Kg1 {[%clk 0:00:10]}  Rxe2 {[%clk 0:00:08]} 35. Rb1 {[%clk 0:00:10]}  Rg2+ {[%clk 0:00:09]} 36. Kf1 {[%clk 0:00:10]}  Rxg3 {[%clk 0:00:09]} 37. Rb6 {[%clk 0:00:10]}  f5 {[%clk 0:00:05]} 38. Rxa6 {[%clk 0:00:09]}  e4 {[%clk 0:00:05]} 39. Ra8+ {[%clk 0:00:09]}  Kg7 {[%clk 0:00:05]} 40. Re8 {[%clk 0:00:09]}  Rxh3 {[%clk 0:00:04]} 41. Kf2 {[%clk 0:00:09]}  Rh1 {[%clk 0:00:05]} 42. Ke3 {[%clk 0:00:09]}  Ra1 {[%clk 0:00:06]} 43. Kf4 {[%clk 0:00:09]}  Kf6 {[%clk 0:00:06]} 44. Rh8 {[%clk 0:00:08]}  Kg6 {[%clk 0:00:07]} 45. Rg8+ {[%clk 0:00:08]}  Kf6 {[%clk 0:00:07]} 46. Rh8 {[%clk 0:00:09]}  Kg7 {[%clk 0:00:08]} 47. Rc8 {[%clk 0:00:08]}  Rxa3 {[%clk 0:00:09]} 48. Rc5 {[%clk 0:00:08]}  h5 {[%clk 0:00:09]} 49. Rxf5 {[%clk 0:00:08]}  Kg6 {[%clk 0:00:09]} 50. Rg5+ {[%clk 0:00:08]}  Kf6 {[%clk 0:00:09]} 51. Rf5+ {[%clk 0:00:08]}  Ke6 {[%clk 0:00:10]} 52. Rg5 {[%clk 0:00:08]}  f6 {[%clk 0:00:10]} 53. Rg6 {[%clk 0:00:08]}  Bg4 {[%clk 0:00:09]} 54. Rg8 {[%clk 0:00:08]}  e3 {[%clk 0:00:09]} 55. Re8+ {[%clk 0:00:08]}  Kf7 {[%clk 0:00:10]} 56. Rxe3 {[%clk 0:00:08]}  Rxe3 {[%clk 0:00:10]} 57. Kxe3 {[%clk 0:00:09]}  Kg6 {[%clk 0:00:11]} 58. Kf4 {[%clk 0:00:09]}  f5 {[%clk 0:00:12]} 0-1


[Site "https://www.chess.com"]

[Event "Titled Tuesday Blitz March 08 Early 2022"]
[White "Havanecz, Bianka"]
[Black "Goltseva, Ekaterina"]
[WhiteFideId "704814"]
[BlackFideId "24173770"]
[WhiteElo "2382"]
[BlackElo "2140"]
[Result "0-1"]
[Round "03"]
[TimeControl "180+1"]
[Date "2022.03.09"]
[WhiteClock "0:00:02"]
[BlackClock "0:01:30"]

1. d4 {[%clk 0:03:00]}  Nf6 {[%clk 0:02:59]} 2. c4 {[%clk 0:03:01]}  e6 {[%clk 0:03:00]} 3. Nc3 {[%clk 0:03:01]}  d5 {[%clk 0:02:59]} 4. Nf3 {[%clk 0:02:59]}  a6 {[%clk 0:02:58]} 5. e3 {[%clk 0:02:56]}  dxc4 {[%clk 0:02:56]} 6. Bxc4 {[%clk 0:02:55]}  b5 {[%clk 0:02:56]} 7. Bd3 {[%clk 0:02:55]}  Bb7 {[%clk 0:02:56]} 8. O-O {[%clk 0:02:53]}  Nbd7 {[%clk 0:02:56]} 9. e4 {[%clk 0:02:45]}  c5 {[%clk 0:02:54]} 10. Bg5 {[%clk 0:02:31]}  cxd4 {[%clk 0:02:37]} 11. Nxd4 {[%clk 0:02:24]}  Be7 {[%clk 0:02:29]} 12. Nf3 {[%clk 0:01:24]}  b4 {[%clk 0:01:54]} 13. Na4 {[%clk 0:00:52]}  Nxe4 {[%clk 0:01:52]} 14. Bxe4 {[%clk 0:00:46]}  Bxe4 {[%clk 0:01:48]} 15. Bxe7 {[%clk 0:00:38]}  Qxe7 {[%clk 0:01:47]} 16. Rc1 {[%clk 0:00:26]}  O-O {[%clk 0:01:32]} 17. Rc7 {[%clk 0:00:02]}  Rad8 {[%clk 0:01:30]} 0-1


[Site "https://www.chess.com"]

[Event "Titled Tuesday Blitz March 08 Early 2022"]
[White "Hoffmann, Asa"]
[Black "Tologon tegin, Semetei"]
[WhiteFideId "2001470"]
[BlackFideId "13800574"]
[WhiteElo "2117"]
[BlackElo "2258"]
[Result "1-0"]
[Round "03"]
[TimeControl "180+1"]
[Date "2022.03.09"]
[WhiteClock "0:00:33"]
[BlackClock "0:00:05"]

1. d4 {[%clk 0:02:56]}  d5 {[%clk 0:02:57]} 2. Bg5 {[%clk 0:02:56]}  c5 {[%clk 0:02:55]} 3. e3 {[%clk 0:02:54]}  Nc6 {[%clk 0:02:50]} 4. c3 {[%clk 0:02:53]}  Qb6 {[%clk 0:02:44]} 5. Qd2 {[%clk 0:02:45]}  Bf5 {[%clk 0:02:39]} 6. Nf3 {[%clk 0:02:43]}  e6 {[%clk 0:02:39]} 7. Be2 {[%clk 0:02:42]}  h6 {[%clk 0:02:37]} 8. Bh4 {[%clk 0:02:42]}  g5 {[%clk 0:02:37]} 9. Bg3 {[%clk 0:02:41]}  Nf6 {[%clk 0:02:37]} 10. O-O {[%clk 0:02:39]}  Ne4 {[%clk 0:02:37]} 11. Qc1 {[%clk 0:02:39]}  Rc8 {[%clk 0:02:36]} 12. Na3 {[%clk 0:02:24]}  Bg7 {[%clk 0:02:33]} 13. dxc5 {[%clk 0:02:20]}  Qxc5 {[%clk 0:02:26]} 14. Nb5 {[%clk 0:02:18]}  a6 {[%clk 0:02:26]} 15. Nbd4 {[%clk 0:02:18]}  Bg6 {[%clk 0:02:22]} 16. Nd2 {[%clk 0:02:12]}  Nxg3 {[%clk 0:02:17]} 17. hxg3 {[%clk 0:02:11]}  h5 {[%clk 0:02:13]} 18. N2b3 {[%clk 0:02:08]}  Qd6 {[%clk 0:02:11]} 19. f4 {[%clk 0:02:04]}  g4 {[%clk 0:01:50]} 20. Qd2 {[%clk 0:01:57]}  Be4 {[%clk 0:01:49]} 21. Bd3 {[%clk 0:01:55]}  f5 {[%clk 0:01:47]} 22. Bxe4 {[%clk 0:01:55]}  dxe4 {[%clk 0:01:46]} 23. Nxf5 {[%clk 0:01:51]}  Qxd2 {[%clk 0:01:43]} 24. Nxg7+ {[%clk 0:01:50]}  Kf7 {[%clk 0:01:43]} 25. Nxd2 {[%clk 0:01:50]}  Kxg7 {[%clk 0:01:43]} 26. Nxe4 {[%clk 0:01:50]}  Rcd8 {[%clk 0:01:43]} 27. Rad1 {[%clk 0:01:48]}  b6 {[%clk 0:01:40]} 28. Ng5 {[%clk 0:01:47]}  Kf6 {[%clk 0:01:39]} 29. e4 {[%clk 0:01:47]}  Na5 {[%clk 0:01:37]} 30. b3 {[%clk 0:01:46]}  Nb7 {[%clk 0:01:35]} 31. Kf2 {[%clk 0:01:45]}  Nc5 {[%clk 0:01:34]} 32. Ke3 {[%clk 0:01:46]}  h4 {[%clk 0:01:31]} 33. e5+ {[%clk 0:01:45]}  Kf5 {[%clk 0:01:30]} 34. Nf7 {[%clk 0:01:41]}  Rxd1 {[%clk 0:01:27]} 35. Rxd1 {[%clk 0:01:39]}  Rh7 {[%clk 0:01:25]} 36. Nd6+ {[%clk 0:01:34]}  Kg6 {[%clk 0:01:25]} 37. Ne4 {[%clk 0:01:31]}  Nxe4 {[%clk 0:01:21]} 38. Kxe4 {[%clk 0:01:31]}  hxg3 {[%clk 0:01:18]} 39. Rd3 {[%clk 0:01:30]}  Rh2 {[%clk 0:01:06]} 40. Rxg3 {[%clk 0:01:29]}  Kh5 {[%clk 0:01:06]} 41. f5 {[%clk 0:01:25]}  Kh4 {[%clk 0:01:05]} 42. Rd3 {[%clk 0:01:18]}  exf5+ {[%clk 0:01:02]} 43. Kxf5 {[%clk 0:01:17]}  Rxg2 {[%clk 0:01:03]} 44. e6 {[%clk 0:01:17]}  Rf2+ {[%clk 0:01:02]} 45. Kg6 {[%clk 0:01:17]}  g3 {[%clk 0:01:00]} 46. e7 {[%clk 0:01:16]}  g2 {[%clk 0:00:57]} 47. Rd4+ {[%clk 0:01:13]}  Kh3 {[%clk 0:00:55]} 48. Rd1 {[%clk 0:00:53]}  Rf1 {[%clk 0:00:50]} 49. Rxf1 {[%clk 0:00:52]}  gxf1=Q {[%clk 0:00:50]} 50. e8=Q {[%clk 0:00:51]}  Qd3+ {[%clk 0:00:49]} 51. Kg5 {[%clk 0:00:49]}  Qxc3 {[%clk 0:00:46]} 52. Qe6+ {[%clk 0:00:48]}  Kg3 {[%clk 0:00:44]} 53. Qxb6 {[%clk 0:00:47]}  Qd2+ {[%clk 0:00:43]} 54. Kf5 {[%clk 0:00:47]}  Qxa2 {[%clk 0:00:43]} 55. Ke4 {[%clk 0:00:46]}  a5 {[%clk 0:00:20]} 56. Kd5 {[%clk 0:00:44]}  a4 {[%clk 0:00:19]} 57. Qe3+ {[%clk 0:00:42]}  Kg4 {[%clk 0:00:09]} 58. Qe4+ {[%clk 0:00:41]}  Kg5 {[%clk 0:00:10]} 59. Qxa4 {[%clk 0:00:41]}  Qd2+ {[%clk 0:00:07]} 60. Kc5 {[%clk 0:00:40]}  Kf5 {[%clk 0:00:06]} 61. Qd4 {[%clk 0:00:38]}  Qa5+ {[%clk 0:00:05]} 62. Kc4 {[%clk 0:00:37]}  Ke6 {[%clk 0:00:05]} 63. b4 {[%clk 0:00:36]}  Qa2+ {[%clk 0:00:05]} 64. Kb5 {[%clk 0:00:36]}  Qe2+ {[%clk 0:00:05]} 65. Qc4+ {[%clk 0:00:36]}  Qxc4+ {[%clk 0:00:04]} 66. Kxc4 {[%clk 0:00:36]}  Kd6 {[%clk 0:00:04]} 67. Kb5 {[%clk 0:00:36]}  Kc7 {[%clk 0:00:05]} 68. Ka6 {[%clk 0:00:36]}  Kb8 {[%clk 0:00:05]} 69. Kb6 {[%clk 0:00:36]}  Ka8 {[%clk 0:00:05]} 70. b5 {[%clk 0:00:36]}  Kb8 {[%clk 0:00:05]} 71. Kc6 {[%clk 0:00:33]}  Kc8 {[%clk 0:00:05]} 72. b6 {[%clk 0:00:33]}  Kb8 {[%clk 0:00:05]} 73. b7 {[%clk 0:00:33]} 1-0


[Site "https://www.chess.com"]